[Event "Titled Tuesday Blitz May 16 Early 2023"]
[White "Hartikainen, Jarmo"]
[Black "Winkels, Marcel"]
[WhiteFideId "503134"]
[BlackFideId "1003887"]
[WhiteElo "2095"]
[BlackElo "1900"]
[Result "0-1"]
[Round "11"]
[TimeControl "180+2"]
[Date "2023.05.16"]
[WhiteClock "0:00:00"]
[BlackClock "0:00:02"]

1. e4 {[%clk 0:03:00]}  Nf6 {[%clk 0:02:56]} 2. e5 {[%clk 0:02:59]}  Nd5 {[%clk 0:02:56]} 3. Nf3 {[%clk 0:02:59]}  d6 {[%clk 0:02:57]} 4. Bc4 {[%clk 0:02:59]}  e6 {[%clk 0:02:55]} 5. d4 {[%clk 0:02:56]}  Nc6 {[%clk 0:02:45]} 6. O-O {[%clk 0:02:41]}  Be7 {[%clk 0:02:43]} 7. Nbd2 {[%clk 0:02:24]}  O-O {[%clk 0:02:36]} 8. Ne4 {[%clk 0:02:13]}  dxe5 {[%clk 0:02:27]} 9. dxe5 {[%clk 0:02:11]}  Nb6 {[%clk 0:02:26]} 10. Be2 {[%clk 0:01:53]}  Qxd1 {[%clk 0:02:24]} 11. Rxd1 {[%clk 0:01:51]}  Bd7 {[%clk 0:02:12]} 12. b3 {[%clk 0:01:30]}  Rfd8 {[%clk 0:02:12]} 13. Bb2 {[%clk 0:01:09]}  a5 {[%clk 0:02:11]} 14. c4 {[%clk 0:01:07]}  a4 {[%clk 0:02:06]} 15. h3 {[%clk 0:01:02]}  axb3 {[%clk 0:02:00]} 16. axb3 {[%clk 0:01:02]}  Rxa1 {[%clk 0:02:00]} 17. Rxa1 {[%clk 0:00:58]}  Nb4 {[%clk 0:01:54]} 18. Bc3 {[%clk 0:00:46]}  Bc6 {[%clk 0:01:52]} 19. Nfd2 {[%clk 0:00:36]}  Nd3 {[%clk 0:01:46]} 20. Bxd3 {[%clk 0:00:26]}  Rxd3 {[%clk 0:01:44]} 21. Kf1 {[%clk 0:00:25]}  Rd8 {[%clk 0:01:15]} 22. Ke2 {[%clk 0:00:24]}  h6 {[%clk 0:01:15]} 23. f3 {[%clk 0:00:24]}  Nd7 {[%clk 0:01:09]} 24. b4 {[%clk 0:00:22]}  b6 {[%clk 0:01:07]} 25. Ra7 {[%clk 0:00:20]}  Rc8 {[%clk 0:01:00]} 26. g3 {[%clk 0:00:19]}  Bd8 {[%clk 0:00:47]} 27. h4 {[%clk 0:00:19]}  Ra8 {[%clk 0:00:46]} 28. Rxa8 {[%clk 0:00:19]}  Bxa8 {[%clk 0:00:46]} 29. Kd3 {[%clk 0:00:19]}  Kf8 {[%clk 0:00:40]} 30. c5 {[%clk 0:00:18]}  bxc5 {[%clk 0:00:35]} 31. bxc5 {[%clk 0:00:18]}  Be7 {[%clk 0:00:35]} 32. Kd4 {[%clk 0:00:16]}  Nb8 {[%clk 0:00:30]} 33. Kc4 {[%clk 0:00:13]}  Bd5+ {[%clk 0:00:28]} 34. Kb5 {[%clk 0:00:12]}  Nc6 {[%clk 0:00:27]} 35. f4 {[%clk 0:00:10]}  Na7+ {[%clk 0:00:19]} 36. Ka6 {[%clk 0:00:10]}  Nc6 {[%clk 0:00:19]} 37. Kb5 {[%clk 0:00:10]}  Ke8 {[%clk 0:00:17]} 38. Ba5 {[%clk 0:00:10]}  Kd7 {[%clk 0:00:16]} 39. Bc3 {[%clk 0:00:09]}  Nd8 {[%clk 0:00:15]} 40. Kb4 {[%clk 0:00:05]}  Nb7 {[%clk 0:00:14]} 41. Kb5 {[%clk 0:00:05]}  Bc6+ {[%clk 0:00:14]} 42. Kc4 {[%clk 0:00:04]}  Bd5+ {[%clk 0:00:12]} 43. Kb5 {[%clk 0:00:03]}  Nd8 {[%clk 0:00:11]} 44. Kb4 {[%clk 0:00:02]}  Nc6+ {[%clk 0:00:11]} 45. Kb5 {[%clk 0:00:03]}  Nb8 {[%clk 0:00:11]} 46. Kb4 {[%clk 0:00:03]}  Bc6 {[%clk 0:00:10]} 47. Kc4 {[%clk 0:00:03]}  Na6 {[%clk 0:00:09]} 48. Bb4 {[%clk 0:00:03]}  Bd5+ {[%clk 0:00:09]} 49. Kc3 {[%clk 0:00:03]}  Kc6 {[%clk 0:00:08]} 50. Ba3 {[%clk 0:00:03]}  Nxc5 {[%clk 0:00:08]} 51. Bxc5 {[%clk 0:00:02]}  Bxc5 {[%clk 0:00:09]} 52. g4 {[%clk 0:00:01]}  Bb6 {[%clk 0:00:08]} 53. f5 {[%clk 0:00:01]}  Ba5+ {[%clk 0:00:08]} 54. Kd4 {[%clk 0:00:01]}  Bb6+ {[%clk 0:00:08]} 55. Kd3 {[%clk 0:00:01]}  Kb5 {[%clk 0:00:08]} 56. g5 {[%clk 0:00:01]}  hxg5 {[%clk 0:00:07]} 57. hxg5 {[%clk 0:00:01]}  c5 {[%clk 0:00:06]} 58. fxe6 {[%clk 0:00:01]}  c4+ {[%clk 0:00:06]} 59. Kc2 {[%clk 0:00:01]}  fxe6 {[%clk 0:00:05]} 60. Ng3 {[%clk 0:00:01]}  Bd4 {[%clk 0:00:03]} 61. Nde4 {[%clk 0:00:00]}  Bxe5 {[%clk 0:00:02]} 0-1


[Site "https://www.chess.com"]

[Event "Titled Tuesday Blitz May 16 Early 2023"]
[White "Tarnowska, Aleksandra"]
[Black "Howell, David W L"]
[WhiteFideId "1180967"]
[BlackFideId "410608"]
[WhiteElo "1776"]
[BlackElo "2567"]
[Result "0-1"]
[Round "11"]
[TimeControl "180+2"]
[Date "2023.05.16"]
[WhiteClock "0:00:00"]
[BlackClock "0:00:15"]

1. e4 {[%clk 0:03:00]}  c5 {[%clk 0:02:55]} 2. Nf3 {[%clk 0:03:00]}  d6 {[%clk 0:02:53]} 3. Bb5+ {[%clk 0:02:58]}  Nd7 {[%clk 0:02:50]} 4. O-O {[%clk 0:02:56]}  Nf6 {[%clk 0:02:50]} 5. Re1 {[%clk 0:02:54]}  a6 {[%clk 0:02:48]} 6. Bxd7+ {[%clk 0:02:47]}  Bxd7 {[%clk 0:02:45]} 7. d4 {[%clk 0:02:47]}  cxd4 {[%clk 0:02:43]} 8. Nxd4 {[%clk 0:02:48]}  e6 {[%clk 0:02:29]} 9. Nc3 {[%clk 0:02:44]}  Be7 {[%clk 0:02:29]} 10. h3 {[%clk 0:02:08]}  Rc8 {[%clk 0:02:27]} 11. a4 {[%clk 0:02:00]}  O-O {[%clk 0:02:24]} 12. Qd3 {[%clk 0:01:25]}  Qc7 {[%clk 0:02:18]} 13. Qg3 {[%clk 0:01:05]}  Qc5 {[%clk 0:02:02]} 14. Be3 {[%clk 0:00:31]}  Qh5 {[%clk 0:01:49]} 15. Rad1 {[%clk 0:00:30]}  Rxc3 {[%clk 0:01:43]} 16. bxc3 {[%clk 0:00:30]}  Nxe4 {[%clk 0:01:40]} 17. Qf3 {[%clk 0:00:20]}  Qxf3 {[%clk 0:01:38]} 18. Nxf3 {[%clk 0:00:20]}  Nxc3 {[%clk 0:01:34]} 19. Rd4 {[%clk 0:00:17]}  Nxa4 {[%clk 0:01:30]} 20. Rb1 {[%clk 0:00:08]}  Bc6 {[%clk 0:01:25]} 21. c4 {[%clk 0:00:06]}  Rc8 {[%clk 0:01:20]} 22. Bg5 {[%clk 0:00:04]}  f6 {[%clk 0:01:05]} 23. Bh4 {[%clk 0:00:04]}  Kf7 {[%clk 0:00:59]} 24. Bg3 {[%clk 0:00:04]}  e5 {[%clk 0:00:59]} 25. Rd2 {[%clk 0:00:04]}  Nc5 {[%clk 0:00:53]} 26. Nh4 {[%clk 0:00:04]}  Be4 {[%clk 0:00:49]} 27. Ra1 {[%clk 0:00:03]}  g5 {[%clk 0:00:50]} 28. Nf3 {[%clk 0:00:02]}  Bxf3 {[%clk 0:00:50]} 29. gxf3 {[%clk 0:00:02]}  Kg6 {[%clk 0:00:38]} 30. Ra3 {[%clk 0:00:01]}  Rc6 {[%clk 0:00:30]} 31. h4 {[%clk 0:00:02]}  h6 {[%clk 0:00:30]} 32. hxg5 {[%clk 0:00:02]}  fxg5 {[%clk 0:00:27]} 33. Bh2 {[%clk 0:00:02]}  Kf5 {[%clk 0:00:25]} 34. Rc3 {[%clk 0:00:01]}  h5 {[%clk 0:00:22]} 35. Rd1 {[%clk 0:00:02]}  a5 {[%clk 0:00:21]} 36. Ra3 {[%clk 0:00:02]}  a4 {[%clk 0:00:20]} 37. Rb1 {[%clk 0:00:02]}  Bd8 {[%clk 0:00:19]} 38. Rb5 {[%clk 0:00:02]}  Ra6 {[%clk 0:00:18]} 39. Kg2 {[%clk 0:00:03]}  Rb6 {[%clk 0:00:17]} 40. Rxb6 {[%clk 0:00:02]}  Bxb6 {[%clk 0:00:18]} 41. Bg1 {[%clk 0:00:02]}  Ba5 {[%clk 0:00:18]} 42. f4 {[%clk 0:00:01]}  Bb4 {[%clk 0:00:15]} 43. Rh3 {[%clk 0:00:01]}  exf4 {[%clk 0:00:14]} 44. Rxh5 {[%clk 0:00:00]}  a3 {[%clk 0:00:15]} 0-1


[Site "https://www.chess.com"]

[Event "Titled Tuesday Blitz May 16 Early 2023"]
[White "Ciuffoletti, Paolo"]
[Black "De Souza, Cristiano Gomes"]
[WhiteFideId "807630"]
[BlackFideId "2151758"]
[WhiteElo "2143"]
[BlackElo "2068"]
[Result "0-1"]
[Round "11"]
[TimeControl "180+2"]
[Date "2023.05.16"]
[WhiteClock "0:00:00"]
[BlackClock "0:00:14"]

1. e4 {[%clk 0:03:00]}  c5 {[%clk 0:02:22]} 2. d4 {[%clk 0:02:40]}  cxd4 {[%clk 0:02:22]} 3. c3 {[%clk 0:02:40]}  dxc3 {[%clk 0:02:22]} 4. Nxc3 {[%clk 0:02:39]}  Nc6 {[%clk 0:02:23]} 5. Nf3 {[%clk 0:02:40]}  a6 {[%clk 0:02:23]} 6. Bc4 {[%clk 0:02:39]}  e6 {[%clk 0:02:24]} 7. O-O {[%clk 0:02:39]}  Nge7 {[%clk 0:02:24]} 8. Bg5 {[%clk 0:02:38]}  h6 {[%clk 0:02:23]} 9. Bh4 {[%clk 0:02:38]}  g5 {[%clk 0:02:24]} 10. Bg3 {[%clk 0:02:38]}  Ng6 {[%clk 0:02:24]} 11. Qd2 {[%clk 0:02:37]}  Bg7 {[%clk 0:02:25]} 12. Bd6 {[%clk 0:02:35]}  Bf8 {[%clk 0:02:23]} 13. Rad1 {[%clk 0:02:24]}  Bxd6 {[%clk 0:02:22]} 14. Qxd6 {[%clk 0:02:23]}  Qe7 {[%clk 0:02:22]} 15. Qc7 {[%clk 0:02:02]}  O-O {[%clk 0:02:20]} 16. Rfe1 {[%clk 0:01:57]}  Qd8 {[%clk 0:02:02]} 17. Qg3 {[%clk 0:01:49]}  Qf6 {[%clk 0:01:59]} 18. h4 {[%clk 0:01:12]}  gxh4 {[%clk 0:01:58]} 19. Qg4 {[%clk 0:01:12]}  Qf4 {[%clk 0:01:53]} 20. Qh5 {[%clk 0:01:11]}  Kg7 {[%clk 0:01:52]} 21. Ne2 {[%clk 0:01:09]}  Qf6 {[%clk 0:01:48]} 22. Qc5 {[%clk 0:00:47]}  b5 {[%clk 0:01:42]} 23. Bb3 {[%clk 0:00:42]}  Qe7 {[%clk 0:01:33]} 24. Qe3 {[%clk 0:00:40]}  Bb7 {[%clk 0:01:29]} 25. e5 {[%clk 0:00:39]}  f5 {[%clk 0:01:23]} 26. Nf4 {[%clk 0:00:33]}  Nxf4 {[%clk 0:01:10]} 27. Qxf4 {[%clk 0:00:32]}  Kh7 {[%clk 0:01:08]} 28. Nxh4 {[%clk 0:00:30]}  Rf7 {[%clk 0:01:00]} 29. Nf3 {[%clk 0:00:25]}  Rg8 {[%clk 0:00:57]} 30. Rd6 {[%clk 0:00:24]}  Na5 {[%clk 0:00:56]} 31. Red1 {[%clk 0:00:22]}  Bc6 {[%clk 0:00:48]} 32. Bc2 {[%clk 0:00:21]}  Nc4 {[%clk 0:00:40]} 33. b3 {[%clk 0:00:16]}  Nxd6 {[%clk 0:00:39]} 34. Rxd6 {[%clk 0:00:15]}  Qf8 {[%clk 0:00:31]} 35. g3 {[%clk 0:00:15]}  Qg7 {[%clk 0:00:27]} 36. Nd4 {[%clk 0:00:14]}  Qg4 {[%clk 0:00:23]} 37. Qxg4 {[%clk 0:00:13]}  Rxg4 {[%clk 0:00:23]} 38. Nxe6 {[%clk 0:00:13]}  dxe6 {[%clk 0:00:18]} 39. Rxc6 {[%clk 0:00:13]}  Re7 {[%clk 0:00:16]} 40. Rxe6 {[%clk 0:00:12]}  Rxe6 {[%clk 0:00:15]} 41. Bxf5+ {[%clk 0:00:13]}  Rgg6 {[%clk 0:00:16]} 42. f4 {[%clk 0:00:09]}  Kg7 {[%clk 0:00:15]} 43. Bxe6 {[%clk 0:00:08]}  Rxe6 {[%clk 0:00:15]} 44. Kf2 {[%clk 0:00:09]}  Rc6 {[%clk 0:00:15]} 45. Ke3 {[%clk 0:00:09]}  Kg6 {[%clk 0:00:15]} 46. Ke4 {[%clk 0:00:09]}  Rc2 {[%clk 0:00:15]} 47. f5+ {[%clk 0:00:09]}  Kf7 {[%clk 0:00:15]} 48. Kd5 {[%clk 0:00:04]}  Rxa2 {[%clk 0:00:15]} 49. e6+ {[%clk 0:00:03]}  Ke7 {[%clk 0:00:15]} 50. Kc6 {[%clk 0:00:00]}  Rf2 {[%clk 0:00:14]} 0-1


[Site "https://www.chess.com"]

[Event "Titled Tuesday Blitz May 16 Early 2023"]
[White "Sanchez, Robert"]
[Black "Simonovic, Miroslav"]
[WhiteFideId "2034360"]
[BlackFideId "919152"]
[WhiteElo "1866"]
[BlackElo "2042"]
[Result "0-1"]
[Round "11"]
[TimeControl "180+2"]
[Date "2023.05.16"]
[WhiteClock "0:01:05"]
[BlackClock "0:00:48"]

1. e4 {[%clk 0:03:00]}  c5 {[%clk 0:02:56]} 2. Nf3 {[%clk 0:03:00]}  Nc6 {[%clk 0:02:56]} 3. d4 {[%clk 0:03:00]}  cxd4 {[%clk 0:02:57]} 4. Nxd4 {[%clk 0:03:01]}  g6 {[%clk 0:02:57]} 5. c4 {[%clk 0:03:00]}  Bg7 {[%clk 0:02:57]} 6. Nc2 {[%clk 0:03:00]}  Nf6 {[%clk 0:02:57]} 7. Nc3 {[%clk 0:03:01]}  d6 {[%clk 0:02:57]} 8. Be2 {[%clk 0:03:01]}  O-O {[%clk 0:02:57]} 9. O-O {[%clk 0:03:02]}  Bd7 {[%clk 0:02:57]} 10. Be3 {[%clk 0:03:00]}  Rc8 {[%clk 0:02:56]} 11. b3 {[%clk 0:02:58]}  Qa5 {[%clk 0:02:45]} 12. Bd2 {[%clk 0:02:49]}  Qc7 {[%clk 0:02:30]} 13. Nd5 {[%clk 0:02:41]}  Nxd5 {[%clk 0:02:19]} 14. cxd5 {[%clk 0:02:41]}  Nb8 {[%clk 0:01:55]} 15. Ne3 {[%clk 0:02:28]}  Bxa1 {[%clk 0:01:54]} 16. Qxa1 {[%clk 0:02:29]}  f6 {[%clk 0:01:44]} 17. h4 {[%clk 0:02:23]}  Qb6 {[%clk 0:01:39]} 18. h5 {[%clk 0:02:18]}  Bb5 {[%clk 0:01:39]} 19. Bc4 {[%clk 0:02:15]}  Nd7 {[%clk 0:01:33]} 20. hxg6 {[%clk 0:02:13]}  hxg6 {[%clk 0:01:32]} 21. Qd1 {[%clk 0:02:01]}  Ne5 {[%clk 0:01:29]} 22. Bxb5 {[%clk 0:01:42]}  Qxb5 {[%clk 0:01:28]} 23. Nc4 {[%clk 0:01:42]}  Nxc4 {[%clk 0:01:21]} 24. bxc4 {[%clk 0:01:42]}  Qxc4 {[%clk 0:01:21]} 25. Qg4 {[%clk 0:01:43]}  Kg7 {[%clk 0:01:20]} 26. Qe6 {[%clk 0:01:32]}  Qc7 {[%clk 0:01:16]} 27. g3 {[%clk 0:01:20]}  Qd8 {[%clk 0:01:05]} 28. Kg2 {[%clk 0:01:17]}  Rh8 {[%clk 0:01:01]} 29. Rb1 {[%clk 0:01:13]}  b6 {[%clk 0:01:00]} 30. Rb3 {[%clk 0:01:10]}  Rc7 {[%clk 0:00:54]} 31. Rf3 {[%clk 0:01:09]}  Qd7 {[%clk 0:00:48]} 32. Qxf6+ {[%clk 0:01:05]} 0-1


[Site "https://www.chess.com"]

[Event "Titled Tuesday Blitz May 16 Early 2023"]
[White "Kretchetov, Alexandre"]
[Black "Muhammed, Shuaau"]
[WhiteFideId "4124588"]
[BlackFideId "16700406"]
[WhiteElo "2406"]
[BlackElo "1922"]
[Result "0-1"]
[Round "11"]
[TimeControl "180+2"]
[Date "2023.05.16"]
[WhiteClock "0:00:00"]
[BlackClock "0:00:12"]

1. e4 {[%clk 0:03:00]}  c5 {[%clk 0:02:59]} 2. Nf3 {[%clk 0:03:00]}  Nc6 {[%clk 0:02:59]} 3. c3 {[%clk 0:03:00]}  d6 {[%clk 0:02:57]} 4. d4 {[%clk 0:03:01]}  cxd4 {[%clk 0:02:56]} 5. cxd4 {[%clk 0:03:01]}  e5 {[%clk 0:02:56]} 6. d5 {[%clk 0:03:00]}  Nb8 {[%clk 0:02:55]} 7. Nc3 {[%clk 0:02:56]}  f5 {[%clk 0:02:54]} 8. Bd3 {[%clk 0:02:46]}  f4 {[%clk 0:02:48]} 9. b3 {[%clk 0:02:37]}  Nf6 {[%clk 0:02:45]} 10. Ba3 {[%clk 0:02:37]}  a6 {[%clk 0:02:44]} 11. Rc1 {[%clk 0:02:03]}  Be7 {[%clk 0:02:43]} 12. g3 {[%clk 0:02:01]}  fxg3 {[%clk 0:02:36]} 13. fxg3 {[%clk 0:02:00]}  O-O {[%clk 0:02:34]} 14. O-O {[%clk 0:01:58]}  Bg4 {[%clk 0:02:32]} 15. Qe1 {[%clk 0:01:49]}  Bh3 {[%clk 0:02:30]} 16. Rf2 {[%clk 0:01:47]}  Ng4 {[%clk 0:02:30]} 17. Rcc2 {[%clk 0:01:31]}  Nxf2 {[%clk 0:02:29]} 18. Rxf2 {[%clk 0:01:31]}  Bg4 {[%clk 0:02:27]} 19. Nd2 {[%clk 0:01:27]}  Nd7 {[%clk 0:02:22]} 20. Rxf8+ {[%clk 0:01:24]}  Nxf8 {[%clk 0:02:21]} 21. Nc4 {[%clk 0:01:23]}  b5 {[%clk 0:02:19]} 22. Ne3 {[%clk 0:01:21]}  Bh3 {[%clk 0:02:10]} 23. g4 {[%clk 0:01:17]}  Bh4 {[%clk 0:01:57]} 24. Qe2 {[%clk 0:01:07]}  Ng6 {[%clk 0:01:46]} 25. Nf5 {[%clk 0:01:01]}  Nf4 {[%clk 0:01:47]} 26. Qd2 {[%clk 0:00:57]}  Nxd3 {[%clk 0:01:44]} 27. Qxd3 {[%clk 0:00:57]}  Bxg4 {[%clk 0:01:44]} 28. Nxd6 {[%clk 0:00:52]}  Qg5 {[%clk 0:01:42]} 29. Kh1 {[%clk 0:00:49]}  Qf4 {[%clk 0:01:17]} 30. Ne2 {[%clk 0:00:27]}  Bf3+ {[%clk 0:01:16]} 31. Kg1 {[%clk 0:00:26]}  Qg4+ {[%clk 0:01:14]} 32. Ng3 {[%clk 0:00:14]}  Bxg3 {[%clk 0:01:14]} 33. hxg3 {[%clk 0:00:13]}  Qxg3+ {[%clk 0:01:13]} 34. Kf1 {[%clk 0:00:13]}  Qg2+ {[%clk 0:00:57]} 35. Ke1 {[%clk 0:00:13]}  Rf8 {[%clk 0:00:45]} 36. Qf1 {[%clk 0:00:09]}  Qxf1+ {[%clk 0:00:37]} 37. Kxf1 {[%clk 0:00:09]}  Bxe4+ {[%clk 0:00:38]} 38. Ke2 {[%clk 0:00:09]}  Bxd5 {[%clk 0:00:37]} 39. Ke3 {[%clk 0:00:06]}  Rf3+ {[%clk 0:00:27]} 40. Ke2 {[%clk 0:00:05]}  Rf6 {[%clk 0:00:26]} 41. Ne8 {[%clk 0:00:04]}  Rc6 {[%clk 0:00:20]} 42. Nd6 {[%clk 0:00:03]}  g5 {[%clk 0:00:15]} 43. Nf5 {[%clk 0:00:00]}  Kf7 {[%clk 0:00:12]} 0-1